bitfinex/quotes_ETHUSD_20250131
["timestamp","ask_amount","ask_price","bid_price","bid_amount"]
[1738349829255,1.3641,3320.1,3320.0,0.1]
[1738349829610,0.8066,3320.1,3320.0,0.1]
[1738349829810,1.0436,3320.1,3320.0,0.1]
[1738349830250,0.7991,3320.1,3320.0,3.11204]
[1738349830547,9.3e-06,3320.2,3320.1,3.01195]
[1738349830701,9.3e-06,3320.2,3320.0,3.11204]
[1738349830903,9.3e-06,3320.2,3320.1,3.01195]
[1738349831133,0.0075,3320.1,3320.0,0.1]
[1738349831334,0.8026,3320.1,3320.0,0.1]
[1738349831509,1.3676,3320.1,3320.0,0.1]
[1738349831710,1.5310786,3320.1,3320.0,0.1]
[1738349832231,1.5612553,3320.1,3320.0,0.1]
[1738349832449,7.5732053,3320.1,3320.0,0.1]
[1738349832744,7.5430286,3320.1,3320.0,0.1]
[1738349836430,4.5430286,3320.1,3320.0,0.1]
[1738349837449,1.0471,3320.1,3320.0,0.1]
[1738349837981,1.5971,3320.1,3320.0,0.1]
[1738349838146,1.6046,3320.1,3320.0,0.1]
[1738349838328,4.61655,3320.1,3320.0,0.1]
[1738349839362,4.6467267,3320.1,3320.0,0.1]
[1738349839551,5.4125823,3320.1,3320.0,0.1]
[1738349841557,5.3824056,3320.1,3320.0,0.1]
[1738349842630,5.4125823,3320.1,3320.0,0.1]
[1738349843031,5.3824056,3320.1,3320.0,0.1]
[1738349845475,5.3824056,3320.1,3320.0,0.05921445]
[1738349846279,9.3e-06,3320.2,3320.1,3.01195]
[1738349846451,9.3e-06,3320.2,3320.1,3.78405]
[1738349846857,9.3e-06,3320.2,3320.1,0.7721]
[1738349848045,9.3e-06,3320.2,3320.1,3.78405]
[1738349848284,9.3e-06,3320.2,3320.0,0.05921445]
[1738349848470,3.57695,3320.1,3320.0,0.05921445]
[1738349848781,4.23583793,3320.1,3320.0,0.05921445]
[1738349849781,3.57695,3320.1,3320.0,0.05921445]
[1738349849988,9.3e-06,3320.2,3320.1,3.01195]
[1738349850149,9.3e-06,3320.2,3320.1,6.79696756]
[1738349850346,9.3e-06,3320.2,3320.1,6.76685]
[1738349850694,9.3e-06,3320.2,3320.1,8.14000696]
[1738349851892,9.3e-06,3320.2,3320.1,0.7549]
[1738349852106,9.3e-06,3320.2,3320.0,0.05921445]
[1738349852600,9.3e-06,3320.2,3320.1,3.01195]
[1738349853511,9.3e-06,3320.2,3320.1,3.83865]
[1738349853721,9.3e-06,3320.2,3320.1,3.86876376]
[1738349853994,9.3e-06,3320.2,3320.1,4.53264582]
[1738349854363,9.3e-06,3320.2,3320.1,7.5627596]
[1738349854558,9.3e-06,3320.2,3320.1,7.53264582]
[1738349856662,9.3e-06,3320.2,3320.1,6.83865]
[1738349856991,9.3e-06,3320.2,3320.1,3.83865]
[1738349859706,9.3e-06,3320.2,3320.1,6.86876649]
[1738349859903,9.3e-06,3320.2,3320.1,6.83865]
[1738349862169,9.3e-06,3320.2,3320.0,3.07119445]
[1738349862401,9.3e-06,3320.2,3320.0,0.05921445]
[1738349863686,0.0075,3320.1,3320.0,0.05921445]
[1738349866123,4.38415,3320.1,3320.0,0.05921445]
[1738349866325,4.62115,3320.1,3320.0,0.05921445]
[1738349867540,4.6513267,3320.1,3320.0,0.05921445]
[1738349867909,4.6112267,3320.1,3320.0,0.05921445]
[1738349868120,5.43697387,3320.1,3320.0,0.05921445]
[1738349869039,5.43697387,3320.1,3318.4,3.01346]
[1738349869040,0.7627,3319.0,3318.4,3.01346]
[1738349869240,0.7928767,3319.0,3318.4,3.01346]
[1738349869449,0.0075,3318.9,3318.3,3.81085]
[1738349869602,0.3124376,3318.9,3318.3,3.81085]
[1738349869801,0.3124376,3318.9,3318.4,0.03606339]
[1738349870247,3.3255076,3318.9,3318.4,0.03606339]
[1738349870708,3.3255076,3318.9,3318.3,3.01355]
[1738349871043,3.3255076,3318.9,3318.4,0.03966973]
[1738349871238,0.0075,3318.7,3318.4,0.03966973]
[1738349871418,0.237,3318.6,3318.4,0.03966973]
[1738349871617,0.237,3318.6,3318.3,3.01355]
[1738349871944,0.237,3318.6,3318.5,0.03599247]
[1738349872143,0.237,3318.6,3317.6,3.0]
[1738349872144,3.5784,3318.5,3318.4,0.03966973]
[1738349872310,5.03793767,3318.5,3318.4,0.03966973]
[1738349872505,5.27493767,3318.5,3318.4,0.03966973]
[1738349872945,0.7677,3317.7,3317.0,3.01474]
[1738349873145,0.0301767,3317.6,3317.0,3.01474]
[1738349873310,0.0301767,3317.6,3317.1,0.03201186]
[1738349873510,0.0075,3317.5,3317.1,0.03201186]
[1738349873705,0.0075,3317.4,3316.9,3.01485]
[1738349874063,0.0075,3317.4,3317.0,0.03207192]
[1738349874454,0.0075,3317.5,3316.9,3.01485]
[1738349874640,1.0463,3318.4,3317.7,3.01406]
[1738349874853,1.0463,3318.4,3317.9,3.01388]
[1738349875037,0.5575,3318.3,3317.8,0.03211559]
[1738349875240,0.5575,3318.3,3318.0,0.03466182]
[1738349875445,1.019224,3318.3,3317.9,0.03205556]
[1738349875751,0.5575,3318.3,3318.1,0.0319355]
[1738349875912,0.5575,3318.3,3318.0,0.03199553]
[1738349876112,0.5575,3318.3,3318.2,0.03177062]
[1738349876321,0.5575,3318.3,3318.1,0.03183065]
[1738349876551,0.5575,3318.3,3318.2,0.03177062]
[1738349876733,0.5575,3318.3,3317.8,3.014]
[1738349876936,0.237,3318.4,3318.0,3.01378]
[1738349877347,0.237,3318.4,3318.1,0.03183065]
[1738349877740,0.237,3318.4,3318.0,3.01385]
[1738349877939,0.237,3318.3,3318.2,3.01361]
[1738349878452,0.237,3318.3,3318.2,3.04788164]
[1738349878611,0.237,3318.5,3318.4,3.01343]
[1738349879067,0.237,3318.5,3318.4,3.05067538]
[1738349879519,3.01229,3319.8,3318.9,3.01302]
[1738349879716,0.7953,3320.0,3319.2,3.01269]
[1738349879950,0.237,3319.9,3319.2,3.01269]
[1738349880149,0.015,3319.8,3319.3,0.04007456]
[1738349880911,3.78089,3319.4,3319.3,0.04007456]
[1738349881148,0.0075,3318.8,3318.2,3.01365]
[1738349881554,0.0075,3318.8,3318.3,0.03703665]
[1738349881760,0.0075,3318.8,3318.3,3.01358]
[1738349882067,3.01281,3319.2,3318.5,3.0134]
[1738349882225,0.5575,3319.1,3318.5,3.0134]
[1738349882427,0.5575,3319.1,3318.6,0.03372593]
[1738349882760,0.0075,3319.1,3318.6,0.03372593]
[1738349882959,0.0075,3319.1,3318.6,3.04700593]
[1738349883163,0.0075,3319.1,3318.6,0.03372593]
[1738349884036,0.0075,3319.2,3318.6,3.04702593]
[1738349884237,0.8326,3319.7,3318.7,3.01322]
[1738349884457,0.8326,3319.7,3318.6,0.33842852]
[1738349884458,0.237,3319.6,3319.1,3.01279]
[1738349884762,0.0075,3319.5,3319.2,0.03344946]
[1738349884964,3.6077367,3319.5,3319.2,0.03344946]
[1738349885163,0.565,3319.5,3319.2,0.03344946]
[1738349885465,0.565,3319.5,3318.1,0.8306]
[1738349885466,0.0075,3318.9,3318.1,0.8306]
[1738349885667,0.0075,3318.9,3318.6,3.0133]
[1738349885869,0.381447,3319.4,3318.8,3.01312]
[1738349886031,0.7945,3319.3,3318.9,3.01303]
[1738349886371,0.7945,3319.3,3318.8,3.01312]
[1738349886665,0.5575,3318.6,3317.4,0.8331]
[1738349887175,0.0075,3318.0,3317.4,0.8331]
[1738349887377,0.0075,3317.8,3316.7,0.7524]
[1738349887575,0.5575,3317.8,3316.7,0.7524]
[1738349887893,0.237,3317.7,3316.7,0.7524]
[1738349888169,0.237,3318.2,3317.0,3.0]
[1738349888480,0.237,3318.2,3317.2,0.7939]
[1738349888638,0.0075,3318.4,3317.2,0.7939]
[1738349888833,0.0075,3318.2,3317.2,0.7939]
[1738349889059,0.0376767,3318.2,3317.2,0.7939]
[1738349889252,0.0075,3318.2,3317.2,0.7939]
[1738349889762,0.0075,3318.2,3317.2,1.24195297]
[1738349890976,0.5575,3318.2,3317.2,1.24195297]
[1738349892975,0.0075,3318.2,3317.2,1.24195297]
[1738349893164,0.237,3318.1,3317.4,3.0]
[1738349893364,0.237,3318.1,3317.4,3.78328375]
[1738349894338,0.237,3318.1,3317.4,0.78328375]
[1738349894541,0.237,3318.1,3317.2,1.24195297]
[1738349895981,0.565,3317.8,3316.6,0.8226]
[1738349896278,0.565,3317.6,3316.6,0.8226]
[1738349896646,0.5575,3317.4,3316.6,0.8226]
[1738349896842,0.5575,3317.2,3315.7,3.5607418]
[1738349897085,0.783,3317.1,3315.8,0.7853]
[1738349897289,0.783,3317.1,3315.8,3.82942332]
[1738349897468,1.112132,3317.4,3315.8,3.82942332]
[1738349897651,3.5607418,3317.9,3316.3,0.7765]
[1738349897652,0.7542,3317.7,3316.3,0.7765]
[1738349897844,0.7542,3317.7,3316.6,3.0]
[1738349898049,0.237,3317.6,3316.7,0.7765]
[1738349899078,0.0075,3317.5,3316.7,0.7765]
[1738349899747,0.5575,3317.5,3316.7,0.7765]
[1738349899941,0.5575,3317.3,3316.7,0.7765]
[1738349901959,0.55,3317.5,3316.7,0.7765]
[1738349902164,0.237,3317.4,3316.7,0.7765]
[1738349903168,0.237,3317.4,3316.8,0.03014734]
[1738349903483,0.237,3317.4,3316.7,0.7765]
[1738349903660,0.237,3317.4,3316.8,0.37765]
[1738349904060,0.7843,3318.0,3316.8,0.37765]
[1738349904285,0.237,3317.9,3317.0,3.0]
[1738349904878,0.237,3317.9,3317.1,0.03014125]
[1738349905090,0.237,3317.9,3317.0,3.0]
[1738349905290,0.237,3317.9,3317.1,0.73919418]
[1738349906016,0.8139,3318.8,3317.4,3.0]
[1738349906213,0.237,3318.7,3317.6,0.8154]
[1738349906919,0.8183,3319.3,3317.7,3.5607418]
[1738349907227,0.237,3319.2,3318.3,0.7956]
[1738349907388,0.0301767,3319.1,3318.3,0.7956]
[1738349907576,0.8183,3319.8,3318.4,0.03013409]
[1738349907778,3.24933,3319.7,3318.4,0.03013409]
[1738349908114,0.0075,3319.5,3318.3,0.7956]
[1738349908312,3.0425967,3319.6,3318.3,0.7956]
[1738349908492,0.237,3319.7,3318.4,0.03013172]
[1738349908688,0.40676,3319.6,3318.4,0.03013172]
[1738349908889,0.40676,3319.6,3318.3,0.7956]
[1738349909093,0.0075,3319.6,3318.3,0.82572819]
[1738349909716,0.0075,3319.6,3318.3,0.7956]
[1738349909879,0.0075,3319.6,3318.3,0.8257282]
[1738349910389,0.0075,3319.7,3318.3,0.7956]
[1738349910594,3.01271,3319.3,3318.3,0.7956]
[1738349910915,0.7946,3320.3,3318.7,0.7667]
[1738349911223,9.3e-06,3320.2,3319.5,0.7667]
[1738349911376,3.01202,3320.1,3319.5,0.7667]
[1738349911580,3.56951,3320.1,3318.7,0.7667]
[1738349911810,3.01233,3319.7,3318.7,0.7667]
[1738349912021,0.0075,3319.4,3318.7,0.7667]
[1738349912706,0.5575,3319.2,3318.7,0.7667]
[1738349913027,3.02028,3319.2,3318.0,0.7633]
[1738349913375,3.02011,3319.4,3318.0,0.7633]
[1738349913376,0.0075,3319.0,3318.0,0.7633]
[1738349913577,0.237,3318.9,3318.0,0.7633]
[1738349914179,0.562738,3318.9,3318.0,0.7633]
[1738349914378,0.237,3318.9,3318.0,0.7633]
[1738349914578,0.237,3318.9,3318.1,0.03013422]
[1738349914817,0.8086,3319.2,3318.1,0.03013422]
[1738349914984,0.237,3319.1,3318.0,0.7633]
[1738349916527,3.77929,3320.1,3318.4,3.8321]
[1738349916829,0.237,3320.0,3318.6,0.8321]
[1738349917182,0.0075,3319.9,3318.6,0.8321]
[1738349917716,0.8083,3319.2,3317.5,3.5607418]
[1738349917916,3.57069,3318.8,3317.6,0.7672]
[1738349918127,0.5575,3318.8,3317.6,0.7672]
[1738349918335,3.57064,3318.8,3317.6,0.7672]
[1738349918831,0.5575,3318.6,3317.6,0.7672]
[1738349919035,0.237,3318.5,3317.6,0.7672]
[1738349921038,0.237,3318.4,3317.6,3.7672]
[1738349921237,0.237,3318.4,3317.7,0.73279418]
[1738349921936,0.237,3318.4,3317.6,0.7672]
[1738349922152,0.0075,3318.3,3317.6,0.7672]
[1738349922283,0.0075,3318.1,3317.6,0.7672]
[1738349922486,0.5575,3318.1,3317.6,0.7672]
[1738349922686,3.57127,3318.1,3316.8,3.8251]
[1738349923002,0.0075,3318.1,3316.9,0.76872772]
[1738349923240,3.02128,3318.1,3316.9,0.73858418]
[1738349923541,0.0075,3318.1,3317.0,0.03014354]
[1738349923734,3.01396,3317.9,3316.9,0.73858418]
[1738349924036,0.30516367,3317.9,3316.9,0.73858418]
[1738349924358,3.02129,3318.1,3316.9,0.73858418]
[1738349924657,0.0075,3317.9,3316.9,0.73858418]
[1738349925226,3.0516867,3317.9,3316.9,0.73858418]
[1738349925440,3.01414,3317.7,3316.8,0.8251]
[1738349925836,3.5607418,3317.4,3316.6,0.7488]
[1738349926047,3.02254,3316.7,3316.6,0.7488]
[1738349926278,3.8397167,3316.7,3316.6,0.7488]
[1738349926584,0.7945,3316.7,3316.6,0.7488]
[1738349926880,3.80954,3316.7,3316.6,0.7488]
[1738349927084,4.491988,3316.7,3316.6,0.7488]
[1738349927581,4.62644,3316.7,3316.6,0.7488]
[1738349928980,1.6114,3316.7,3316.6,0.7488]
[1738349929175,4.62644,3316.7,3316.6,0.7488]
[1738349929339,4.63394,3316.7,3316.6,0.7488]
[1738349930243,1.6114,3316.7,3316.6,0.7488]
[1738349930444,5.398069,3316.7,3316.6,0.7488]
[1738349931165,5.153569,3316.7,3316.6,0.7488]
[1738349931384,0.7945,3316.7,3316.6,0.7488]
[1738349932283,3.80954,3316.7,3316.6,0.7488]
[1738349934080,4.60264,3316.7,3316.6,0.7488]
[1738349934308,3.01618,3315.5,3314.7,0.8138]
[1738349934526,3.0463967,3315.4,3314.7,0.8138]
[1738349934679,3.01643,3315.2,3314.7,0.8138]
[1738349935011,3.25338,3315.3,3314.4,0.7802]
[1738349935161,0.0075,3314.9,3314.4,0.7802]
[1738349935365,0.309915,3314.9,3314.4,0.7802]
[1738349935595,0.0075,3314.9,3314.4,0.7802]
[1738349935895,0.0075,3315.0,3314.4,0.7802]
[1738349936096,3.02415,3315.0,3314.4,0.7802]
[1738349936304,0.0075,3315.1,3314.4,0.7802]
[1738349936457,0.0075,3314.9,3314.4,0.7802]
[1738349936656,0.0075,3314.7,3313.3,0.7556]
[1738349936887,3.02444,3314.7,3313.3,0.7556]
[1738349937086,0.0075,3314.5,3313.3,0.7556]
[1738349937300,0.0075,3314.5,3313.9,3.01751]
[1738349937659,3.02455,3314.5,3313.9,3.01751]
[1738349937865,0.31226477,3314.4,3314.1,3.0174]
[1738349938141,0.0075,3314.5,3314.1,3.0174]
[1738349938398,0.0075,3314.5,3314.0,3.01749]
[1738349939079,0.0075,3314.6,3314.1,3.01739]
[1738349939290,0.0075,3314.6,3314.0,3.01749]
[1738349939497,0.0075,3314.4,3314.0,3.01749]
[1738349939974,0.0075,3314.5,3314.0,3.01749]
[1738349940172,0.0075,3314.5,3314.1,3.01733]
[1738349940385,0.0075,3314.5,3313.8,3.01764]
[1738349940602,0.0075,3314.5,3314.0,3.01744]
[1738349940761,0.36494,3314.5,3314.1,3.0174]
[1738349941185,0.358156,3314.9,3313.7,0.825]
[1738349941399,0.237,3314.8,3314.6,3.01695]
[1738349941599,0.0075,3314.7,3314.0,3.01742]
[1738349941807,0.5575,3314.7,3314.1,3.01739]
[1738349942026,0.5575,3314.7,3314.2,3.01731]
[1738349942529,0.0075,3314.5,3314.0,6.0349]
[1738349942826,0.0075,3314.5,3314.1,3.01734]
[1738349943029,0.0075,3314.5,3314.2,3.01731]
[1738349943824,0.0075,3314.6,3314.2,3.01731]
[1738349944026,0.0075,3314.6,3314.0,3.01743]
[1738349944228,0.388634,3314.6,3314.1,3.01739]
[1738349944927,0.388634,3314.6,3313.9,3.01753]
[1738349945129,0.5575,3314.5,3313.8,3.01764]
[1738349945298,3.57456,3314.5,3313.8,3.01764]
[1738349945494,0.5575,3314.5,3313.8,3.01764]
[1738349945697,0.5575,3314.3,3313.8,3.01764]
[1738349946240,0.0075,3314.1,3313.3,0.8299]
[1738349946532,0.0075,3314.1,3313.4,0.05644802]
[1738349946892,0.0075,3314.2,3313.3,0.8299]
[1738349947091,3.01743,3314.1,3313.3,0.8299]
[1738349947320,0.860743,3314.0,3313.3,0.8299]
[1738349948502,0.860743,3314.0,3312.6,3.0]
[1738349948697,0.860743,3314.0,3312.7,0.8312]
[1738349948892,0.860743,3314.0,3312.7,0.88127688]
[1738349949129,3.01785,3313.7,3312.7,0.88127688]
[1738349949335,0.378985,3313.6,3312.7,0.88127688]
[1738349949506,0.0075,3313.7,3312.7,0.88127688]
[1738349949704,0.0075,3313.7,3312.7,3.88127688]
[1738349949908,0.772,3313.8,3312.7,7.44201868]
[1738349950111,0.237,3313.7,3313.2,3.7627]
[1738349950503,0.237,3313.7,3313.3,0.05655981]
[1738349950931,0.7765,3314.5,3313.3,0.73800016]
[1738349951141,0.237,3314.0,3313.4,0.05644802]
[1738349952224,0.237,3314.0,3313.4,0.08662357]
[1738349953257,0.7765,3314.5,3313.4,0.08662357]
[1738349953461,0.237,3314.6,3313.6,0.817]
[1738349953755,0.0075,3314.5,3313.6,2.43943654]
[1738349954552,0.0075,3314.5,3313.6,2.46961127]
[1738349954842,0.237,3314.6,3313.6,2.43943654]
[1738349955030,0.237,3314.6,3313.6,2.46960765]
[1738349955425,0.236,3314.6,3313.6,2.46960765]
[1738349955612,0.236,3314.6,3313.7,3.90303494]
[1738349955823,0.7899,3315.2,3313.9,0.8333]
[1738349956008,0.236,3315.2,3314.4,3.0]
[1738349956207,0.236,3315.2,3314.5,0.8333]
[1738349959806,0.236,3315.9,3315.1,0.7889]
[1738349961353,0.236,3315.9,3315.1,0.819059]
[1738349961701,0.236,3315.9,3315.1,0.7889]
[1738349961912,0.236,3315.9,3315.2,0.37889]
[1738349962404,0.236,3315.9,3315.2,0.40904902]
[1738349962554,0.8163,3316.8,3315.4,0.7857]
[1738349962761,0.236,3316.4,3315.4,0.7857]
[1738349965374,0.7518,3316.2,3315.3,3.0]
[1738349965704,0.565,3316.0,3315.2,8.76]
[1738349965911,0.0075,3315.8,3315.1,0.7831]
[1738349966417,0.0376767,3315.8,3315.1,0.7831]
[1738349966573,0.0075,3315.9,3315.1,0.7831]
[1738349969025,0.37974367,3316.1,3315.2,0.03016386]
[1738349969319,0.236,3316.0,3315.1,0.7831]
[1738349970339,0.0075,3315.9,3315.1,0.7831]
[1738349971408,0.5575,3315.9,3315.1,0.7831]
[1738349971824,0.5575,3315.9,3314.6,0.808]
[1738349973884,0.8065,3316.3,3314.7,0.03016376]
[1738349974084,0.8065,3316.3,3314.9,0.7755]
[1738349974085,0.236,3316.2,3314.9,0.7755]
[1738349974298,0.236,3316.2,3315.0,3.03015829]
[1738349974515,0.236,3316.7,3315.3,0.7755]
[1738349974740,0.236,3316.7,3315.5,0.7755]
[1738349975381,0.561089,3316.7,3315.5,0.7755]
[1738349975587,0.325089,3316.7,3315.6,3.0]
[1738349975822,0.236,3316.6,3315.7,0.7774]
[1738349976711,0.236,3316.6,3315.8,0.03015431]
[1738349976909,0.8221,3317.0,3315.7,0.7774]
[1738349977119,0.0075,3317.1,3315.7,0.7774]
[1738349977302,3.5607418,3317.9,3316.0,0.8268]
[1738349977303,0.7992,3317.7,3316.0,0.8268]
[1738349977637,0.236,3317.7,3316.5,0.799]
[1738349977839,0.236,3317.7,3316.4,3.0]
[1738349977840,0.236,3317.7,3316.6,0.799]
[1738349977988,0.236,3317.7,3316.6,0.82914411]
[1738349978341,0.236,3317.7,3316.6,0.799]
[1738349978887,0.236,3317.7,3316.6,0.82914411]
[1738349979718,0.7896,3318.2,3316.6,0.82914411]
[1738349980020,0.236,3318.1,3316.8,3.0]
[1738349980229,0.236,3318.1,3316.7,0.758]
[1738349980230,0.0075,3317.8,3316.7,0.758]
[1738349980423,0.0075,3317.3,3316.3,0.8279]
[1738349980629,0.0075,3317.1,3316.3,0.8279]
[1738349980804,0.302198,3317.2,3316.3,0.8279]
[1738349980998,0.565,3317.5,3316.3,0.8279]
[1738349981224,3.01405,3317.8,3316.4,0.0301502]
[1738349981625,3.01388,3318.0,3316.4,0.0301502]
[1738349981840,0.0075,3318.1,3316.5,0.8071]
[1738349981841,0.236,3317.7,3316.5,0.8071]
[1738349982011,0.7778,3318.1,3316.7,0.8071]
[1738349982334,0.236,3318.0,3316.9,0.7988]
[1738349982639,0.236,3318.0,3317.0,0.03014236]
[1738349983118,0.236,3318.0,3316.9,0.7988]
[1738349983303,0.236,3318.0,3317.0,0.37988]
[1738349983610,0.236,3318.1,3317.1,0.8111]
[1738349986435,0.236,3318.1,3317.2,0.03014197]
[1738349986635,0.236,3318.1,3317.2,0.03013988]
[1738349986814,0.236,3318.1,3317.3,0.7617]
[1738349988937,0.236,3318.1,3317.3,0.79183978]
[1738349989144,1.31451067,3318.6,3317.3,0.79183978]
[1738349989305,0.236,3318.5,3317.4,1.19628398]
[1738349989626,0.236,3318.5,3317.4,0.8171]
[1738349989627,0.015,3318.4,3317.4,0.8171]
[1738349989944,0.5575,3318.2,3317.4,0.8171]
[1738349990116,0.7759,3318.1,3317.4,0.8171]
[1738349990305,0.5575,3318.0,3317.1,8.76]
[1738349990639,0.7735,3317.4,3316.5,0.825]
[1738349990842,0.0075,3317.3,3316.5,0.825]
[1738349991846,0.0075,3317.1,3316.0,0.8061]
[1738349992137,0.0075,3316.9,3316.0,0.8061]
[1738349993903,0.236,3317.0,3316.0,0.8061]
[1738349994335,0.0075,3316.9,3316.0,0.8061]
[1738349994516,0.236,3317.0,3316.1,0.03015281]
[1738349994716,0.236,3317.0,3316.0,0.8061]
[1738349996010,0.0075,3317.2,3316.0,0.8061]
[1738349996210,0.0075,3317.0,3316.0,0.8061]
[1738349997017,0.0075,3317.1,3316.1,0.03015201]
[1738349997341,0.7735,3317.4,3316.0,3.8061]
[1738349997542,0.236,3317.1,3316.0,3.8061]
[1738349997709,0.236,3317.1,3316.0,0.8061]
[1738349998046,0.616052,3317.1,3316.0,0.8061]
[1738349998337,0.616052,3317.1,3315.6,2.49563295]
[1738349999529,3.01491,3316.9,3315.6,2.49563295]
[1738349999731,0.8103,3316.7,3315.3,8.76]
[1738350000331,0.793,3317.2,3316.0,3.0]
[1738350000531,1.40395235,3317.8,3316.8,3.0]
[1738350000832,0.793,3317.8,3316.4,3.0]
[1738350001030,0.793,3317.8,3316.1,3.65607418]
[1738350001031,3.02163,3317.7,3316.1,3.65607418]
[1738350001233,0.7695,3317.0,3315.5,3.5607418]
[1738350001447,0.0075,3316.6,3315.6,0.7622]
[1738350001648,3.01541,3316.3,3315.1,0.7622]
[1738350001953,0.0075,3316.3,3315.1,0.7622]
[1738350002326,0.0376767,3316.3,3315.1,0.7622]
[1738350002526,3.0530867,3316.3,3315.1,0.7622]
[1738350002725,0.0075,3316.1,3315.1,0.7622]
[1738350002927,0.7825,3316.0,3315.1,0.7622]
[1738350003321,3.79821,3316.0,3314.8,8.76]
[1738350003913,0.7825,3316.0,3314.9,3.03016176]
[1738350004109,0.7825,3316.0,3314.9,0.03016176]
[1738350004310,0.7825,3316.0,3315.0,0.87901618]
[1738350004742,0.7825,3316.0,3315.1,0.03016174]
[1738350005155,0.7825,3316.0,3314.9,3.0]
[1738350005358,0.236,3315.9,3314.9,3.03016173]
[1738350005849,0.236,3315.9,3314.9,3.0]
[1738350006159,0.6042991,3315.9,3314.9,3.03016173]
[1738350006454,0.236,3315.8,3314.9,3.0]
[1738350007622,0.236,3315.8,3314.9,11.76]
[1738350008956,0.8137,3316.4,3315.2,0.7684]
[1738350009133,0.8137,3316.4,3315.3,8.76]
[1738350009327,1.0497,3316.4,3315.5,3.0]
[1738350009651,0.0301767,3316.3,3315.5,3.0]
[1738350009852,0.5575,3316.2,3315.5,3.0]
[1738350010072,0.5575,3316.2,3315.4,8.76]
[1738350010073,3.57318,3316.0,3315.4,8.76]
[1738350010299,0.8358,3315.7,3315.4,8.76]
[1738350010622,3.85178,3315.7,3315.4,8.76]
[1738350010823,4.236958,3315.7,3315.4,8.76]
[1738350011321,4.236958,3315.7,3314.4,0.8054]
[1738350011322,0.0075,3315.5,3314.4,0.8054]
[1738350011556,0.7882,3315.4,3314.1,9.5915]
[1738350011736,0.0075,3315.2,3314.2,8.76]
[1738350012138,0.0075,3315.2,3314.2,9.71915]
[1738350012727,3.57391,3315.2,3314.2,8.76]
[1738350012927,4.3395418,3315.0,3313.6,8.76]
[1738350013157,4.3395418,3315.0,3313.5,0.774]
[1738350013158,0.236,3314.9,3313.8,3.0]
[1738350013381,0.236,3315.2,3314.4,3.0]
[1738350013701,0.7788,3315.6,3314.8,3.0]
[1738350013702,1.0148,3315.6,3314.8,3.0]
[1738350013912,1.0148,3315.6,3314.5,8.76]
[1738350013913,1.0148,3315.6,3314.9,1.43727418]
[1738350014194,3.0237,3315.5,3314.5,8.76]
[1738350014344,0.0075,3315.3,3314.5,8.76]
[1738350014672,0.55,3315.4,3314.5,8.76]
[1738350014673,0.7629,3315.2,3314.5,8.76]
[1738350015195,0.0301767,3315.1,3314.5,8.76]
[1738350015416,0.5575,3315.1,3314.5,8.76]
[1738350015548,3.57418,3314.9,3313.5,0.8218]
[1738350015756,1.20909767,3315.0,3313.8,3.5607418]
[1738350015989,0.7724,3315.0,3314.3,3.0]
[1738350016318,1.0084,3315.0,3314.3,3.0]
[1738350016492,1.0084,3315.0,3314.2,0.8218]
[1738350016687,0.236,3315.0,3314.3,11.76]
[1738350016886,0.236,3315.0,3314.7,3.0]
[1738350017111,0.236,3315.0,3314.4,3.0]
[1738350020419,1.0066,3315.4,3314.7,3.0]
[1738350020632,0.7706,3315.9,3315.2,3.0]
[1738350020872,0.7706,3315.9,3315.3,0.68623317]
[1738350021145,0.7706,3315.9,3315.3,0.65607418]
[1738350021433,0.7719,3316.6,3315.6,3.7914]
[1738350021583,0.7719,3317.0,3316.4,3.0]
[1738350021892,0.7719,3317.0,3316.0,3.0]
[1738350022090,0.236,3317.1,3316.7,3.5607418]
[1738350022291,0.7951,3318.1,3316.9,0.7811]
[1738350022492,0.7951,3318.1,3317.2,3.0]
[1738350022716,0.7951,3318.1,3317.1,3.0]
[1738350022918,3.01461,3317.2,3316.4,0.7811]
[1738350023098,3.5607418,3318.2,3315.9,0.7686]
[1738350023099,0.758,3317.0,3315.9,0.7686]
[1738350023309,0.61629367,3316.9,3315.9,0.7686]
[1738350023535,0.236,3316.9,3315.9,0.7686]
[1738350023748,0.5575,3316.8,3315.6,3.7686]
[1738350023883,0.5575,3316.8,3315.1,3.5607418]
[1738350023884,3.77313,3316.6,3315.1,3.5607418]
[1738350024238,0.758,3316.6,3315.6,3.5607418]
[1738350024520,0.758,3316.6,3315.7,0.7686]
[1738350024721,0.758,3316.6,3315.7,1.20153418]
[1738350025217,0.758,3316.6,3315.8,0.03015435]
[1738350025416,0.758,3316.6,3315.7,1.20153418]
[1738350026217,0.236,3316.9,3316.1,3.0]
[1738350026690,0.236,3316.9,3315.7,1.20153418]
[1738350026892,0.236,3316.9,3315.8,0.4762276]
[1738350027220,0.8116,3316.5,3315.3,0.8021]
[1738350027724,0.8116,3316.5,3315.4,0.0301549]
[1738350028085,0.7637,3316.8,3315.7,3.0]
[1738350028393,0.7637,3316.8,3316.0,0.7669]
[1738350028792,3.77865,3316.8,3315.9,3.0]
[1738350028998,0.5575,3316.6,3315.8,8.76]
[1738350029385,1.165165,3316.8,3315.8,8.76]
[1738350029616,0.235,3316.7,3315.8,8.76]
[1738350029798,3.25013,3316.7,3315.8,8.76]
[1738350029982,0.8382,3316.4,3315.8,8.76]
[1738350030186,3.01575,3316.0,3315.0,0.8188]
[1738350030386,0.5575,3315.8,3314.4,3.5607418]
[1738350030587,3.01613,3315.5,3314.4,3.5607418]